fUSD/lending_fUSD_20260616
["ID","MTS","AMOUNT","RATE_DAILY","PERIOD"]
[425220986,1781623838000,-500.0,9.952e-05,2]
[425220988,1781623838000,-500.0,9.952e-05,2]
[425220991,1781623838000,-500.0,9.952e-05,2]
[425221003,1781623838000,-500.0,9.952e-05,2]
[425220993,1781623838000,-372.38219057,9.952e-05,2]
[425220995,1781623838000,-500.0,9.952e-05,2]
[425220970,1781623838000,-487.0,9.742e-05,5]
[425221018,1781623838000,-500.0,9.952e-05,2]
[425221007,1781623838000,-500.0,9.952e-05,2]
[425220999,1781623838000,-500.0,9.952e-05,2]
[425220997,1781623838000,-500.0,9.952e-05,2]
[425221001,1781623838000,-500.0,9.952e-05,2]
[425221012,1781623838000,-500.0,9.952e-05,2]
[425221010,1781623838000,-500.0,9.952e-05,2]
[425221014,1781623838000,-500.0,9.952e-05,2]
[425221016,1781623838000,-500.0,9.952e-05,2]
[425221028,1781623838000,-500.0,9.952e-05,2]
[425221021,1781623838000,-500.0,9.952e-05,2]
[425221005,1781623838000,-500.0,9.952e-05,2]
[425221156,1781623839000,-6097.516,0.00010549,2]
[425221152,1781623839000,-1275.0,0.00010549,2]
[425221150,1781623839000,-383.0,0.00010549,2]
[425221148,1781623839000,-1359.0,0.00010549,2]
[425221146,1781623839000,-167.31080361,0.00010544,2]
[425221138,1781623839000,-926.156308,0.00010538,2]
[425221142,1781623839000,-926.156308,0.00010538,2]
[425221140,1781623839000,-926.156308,0.00010538,2]
[425221136,1781623839000,-1270.31,0.00010538,2]
[425221154,1781623839000,-1228.0,0.00010549,2]
[425221144,1781623839000,-926.156308,0.00010538,2]
[425221158,1781623839000,-3646.0,0.00010549,2]
[425221175,1781623839000,-6688.85393209,0.00010787,2]
[425221160,1781623839000,-329.21,0.00010603,2]
[425221162,1781623839000,-152.0,0.0001065,2]
[425221164,1781623839000,-519.0,0.00010712,2]
[425221167,1781623839000,-329.76,0.00010734,2]
[425221171,1781623839000,-1432.41,0.00010779,2]
[425221177,1781623839000,-150.0,0.00010787,2]
[425221179,1781623839000,-4788.13836527,0.00010787,2]
[425221193,1781623839000,-209.30196256,0.00010958,5]
[425221183,1781623839000,-250.0,0.00010848,2]
[425221173,1781623839000,-150.0,0.00010787,2]
[425221181,1781623839000,-5259.67304398,0.00010815,2]
[425221168,1781623839000,-28975.01540198,0.00010739,2]
[425221134,1781623839000,-4435.32,0.00010538,2]
[425221089,1781623839000,-2000.0,0.0001001,2]
[425221132,1781623839000,-78227.83,0.00010538,2]
[425221085,1781623839000,-2000.0,0.0001,2]
[425221191,1781623839000,-2677.81093479,0.000109,2]
[425221093,1781623839000,-2000.0,0.00010013,2]
[425221087,1781623839000,-2037.1736044,0.0001,2]
[425221083,1781623839000,-1129.76727676,0.0001,2]
[425221099,1781623839000,-2000.0,0.0001006,2]
[425221097,1781623839000,-1432.41,0.00010027,2]
[425221095,1781623839000,-2000.0,0.00010013,2]
[425221101,1781623839000,-151.0,0.00010088,2]
[425221081,1781623839000,-184.97339681,0.0001,2]
[425221091,1781623839000,-152.0,0.00010013,2]
[425221130,1781623839000,-1432.41,0.00010529,2]
[425221105,1781623839000,-329.21,0.00010177,2]
[425221106,1781623839000,-185.06,0.00010179,2]
[425221111,1781623839000,-482.28,0.00010234,2]
[425221113,1781623839000,-386.5,0.0001025,2]
[425221103,1781623839000,-2000.0,0.0001011,2]
[425221123,1781623839000,-329.21,0.00010418,2]
[425221115,1781623839000,-1432.41,0.00010278,2]
[425221121,1781623839000,-152.0,0.00010409,2]
[425221117,1781623839000,-2981.47371803,0.00010315,2]
[425221119,1781623839000,-150.0,0.00010395,2]
[425221125,1781623839000,-356.0,0.00010494,2]
[425221128,1781623839000,-356.0,0.00010497,2]
[425221109,1781623839000,-573.42,0.00010196,2]
[425221187,1781623839000,-2677.81093486,0.000109,2]
[425221303,1781623839000,-302.62,0.00011096,2]
[425221189,1781623839000,-2677.81093479,0.000109,2]
[425221265,1781623839000,-302.62,0.00011021,2]
[425221261,1781623839000,-573.42,0.00011018,2]
[425221255,1781623839000,-185.13,0.00011018,2]
[425221259,1781623839000,-184.49,0.00011018,2]
[425221267,1781623839000,-1432.41,0.0001103,2]
[425221272,1781623839000,-302.62,0.00011037,2]
[425221274,1781623839000,-185.14,0.0001104,2]
[425221278,1781623839000,-160.50301392,0.00011048,2]
[425221276,1781623839000,-185.13,0.0001104,2]
[425221282,1781623839000,-302.62,0.00011052,2]
[425221270,1781623839000,-225.91,0.00011035,2]
[425221257,1781623839000,-185.13,0.00011018,2]
[425221288,1781623839000,-166.66,0.00011068,2]
[425221286,1781623839000,-302.62,0.00011067,2]
[425221290,1781623839000,-302.62,0.00011082,2]
[425221297,1781623839000,-926.156308,0.00011096,2]
[425221301,1781623839000,-153.978247,0.00011096,2]
[425221311,1781623839000,-300.0,0.00011098,2]
[425221292,1781623839000,-926.156308,0.00011096,2]
[425221309,1781623839000,-666.0,0.00011098,2]
[425221295,1781623839000,-926.156308,0.00011096,2]
[425221307,1781623839000,-300.0,0.00011098,2]
[425221305,1781623839000,-300.0,0.00011098,2]
[425221195,1781623839000,-500.0,0.00010958,6]
[425221284,1781623839000,-644.15,0.00011055,2]
[425221253,1781623839000,-185.13,0.00011018,2]
[425221299,1781623839000,-926.156308,0.00011096,2]
[425221250,1781623839000,-185.13,0.00011018,2]
[425221263,1781623839000,-340.48,0.00011019,2]
[425221185,1781623839000,-172.887456,0.00010877,2]
[425221199,1781623839000,-500.0,0.00010958,2]
[425221197,1781623839000,-500.0,0.00010958,8]
[425221216,1781623839000,-150.0,0.00010959,2]
[425221201,1781623839000,-200.0,0.00010959,2]
[425221204,1781623839000,-200.0,0.00010959,2]
[425221208,1781623839000,-3202.22,0.00010959,2]
[425221212,1781623839000,-151.0,0.00010959,2]
[425221214,1781623839000,-151.0,0.00010959,2]
[425221210,1781623839000,-150.0,0.00010959,2]
[425221219,1781623839000,-166.66,0.00010959,2]
[425221206,1781623839000,-200.0,0.00010959,2]
[425221221,1781623839000,-302.62,0.00010974,2]
[425221223,1781623839000,-185.13,0.00010988,2]
[425221244,1781623839000,-357.22,0.00011,2]
[425221242,1781623839000,-687.95,0.00011,2]
[425221247,1781623839000,-302.62,0.00011006,2]
[425221238,1781623839000,-887.38,0.00011,2]
[425221234,1781623839000,-483.65,0.00011,2]
[425221236,1781623839000,-354.65,0.00011,2]
[425221231,1781623839000,-471.05,0.00011,2]
[425221229,1781623839000,-150.0,0.00011,2]
[425221225,1781623839000,-302.62,0.0001099,2]
[425221227,1781623839000,-174.86,0.00011,2]
[425221240,1781623839000,-329.11,0.00011,2]
[425221366,1781623840000,-500.71,0.0001137,2]
[425221353,1781623840000,-302.62,0.00011138,2]
[425221363,1781623840000,-166.66,0.00011288,2]
[425221370,1781623840000,-166.66,0.00011397,2]
[425221367,1781623840000,-341.94,0.00011388,2]
[425221372,1781623840000,-300.0,0.00011451,2]
[425221378,1781623840000,-300.0,0.000115,2]
[425221374,1781623840000,-666.0,0.00011451,2]
[425221389,1781623840000,-425.56,0.00011783,2]
[425221380,1781623840000,-166.66,0.00011507,2]
[425221384,1781623840000,-36684.87661752,0.00011577,2]
[425221382,1781623840000,-2677.81093479,0.00011527,2]
[425221387,1781623840000,-15854.27483403,0.00011577,2]
[425221403,1781623840000,-396.79,0.00011853,2]
[425221391,1781623840000,-430.24,0.00011783,2]
[425221359,1781623840000,-341.94,0.00011189,2]
[425221393,1781623840000,-329.76,0.00011807,2]
[425221376,1781623840000,-66796.21716505,0.00011452,2]
[425221361,1781623840000,-209.7,0.00011248,2]
[425221332,1781623840000,-926.156308,0.00011099,2]
[425221347,1781623840000,-926.156308,0.00011099,2]
[425221397,1781623840000,-10645.8858,0.00011815,2]
[425221315,1781623840000,-36684.87661754,0.00011099,2]
[425221321,1781623840000,-36684.87661752,0.00011099,2]
[425221317,1781623840000,-36684.87661752,0.00011099,2]
[425221319,1781623840000,-36684.87661752,0.00011099,2]
[425221323,1781623840000,-15854.27483406,0.00011099,2]
[425221326,1781623840000,-15854.27483403,0.00011099,2]
[425221328,1781623840000,-15854.27483403,0.00011099,2]
[425221351,1781623840000,-302.62,0.00011124,2]
[425221336,1781623840000,-926.156308,0.00011099,2]
[425221330,1781623840000,-15854.27483403,0.00011099,2]
[425221338,1781623840000,-926.156308,0.00011099,2]
[425221340,1781623840000,-926.156308,0.00011099,2]
[425221345,1781623840000,-926.156308,0.00011099,2]
[425221342,1781623840000,-926.156308,0.00011099,2]
[425221355,1781623840000,-302.62,0.00011152,2]
[425221357,1781623840000,-166.66,0.00011178,2]
[425221349,1781623840000,-302.62,0.0001111,2]
[425221334,1781623840000,-926.156308,0.00011099,2]
[425221399,1781623840000,-573.28,0.00011839,2]
[425221313,1781623840000,-322.51812781,0.00011098,2]
[425221395,1781623840000,-7868.15631342,0.00011815,2]
[425221449,1781623840000,-515.0,0.00011975,2]
[425221457,1781623840000,-473.18,0.00011975,2]
[425221455,1781623840000,-1761.14,0.00011975,2]
[425221461,1781623840000,-205.39676771,0.00012,2]
[425221463,1781623840000,-151.0,0.00012,2]
[425221459,1781623840000,-151.0,0.00012,2]
[425221465,1781623840000,-151.0,0.00012,2]
[425221476,1781623840000,-6280.0,0.00012219,2]
[425221447,1781623840000,-464.0,0.00011975,2]
[425221478,1781623840000,-36684.87661752,0.00012221,2]
[425221468,1781623840000,-151.0,0.00012,2]
[425221474,1781623840000,-183.61,0.0001203,2]
[425221470,1781623840000,-151.0,0.00012,2]
[425221480,1781623840000,-15854.27483403,0.00012221,2]
[425221482,1781623840000,-492.3021665,0.00012229,2]
[425221487,1781623840000,-677.40459193,0.00012235,2]
[425221485,1781623840000,-300.0,0.00012235,2]
[425221401,1781623840000,-482.28,0.00011852,2]
[425221472,1781623840000,-1800.0,0.00012,2]
[425221445,1781623840000,-680.0,0.00011975,2]
[425221489,1781623840000,-174861.7605622,0.00012236,2]
[425221451,1781623840000,-3354.0,0.00011975,2]
[425221408,1781623840000,-573.42,0.00011862,2]
[425221410,1781623840000,-396.18,0.00011869,2]
[425221414,1781623840000,-2037.1736044,0.00011899,2]
[425221406,1781623840000,-482.2,0.00011854,2]
[425221412,1781623840000,-644.15,0.00011878,2]
[425221441,1781623840000,-1141.0,0.00011975,2]
[425221425,1781623840000,-572.0,0.00011975,2]
[425221429,1781623840000,-752.0,0.00011975,2]
[425221427,1781623840000,-1387.0,0.00011975,2]
[425221416,1781623840000,-1500.0,0.000119,4]
[425221421,1781623840000,-200.0,0.0001194,2]
[425221423,1781623840000,-577.0,0.00011975,2]
[425221431,1781623840000,-423.92800147,0.00011975,2]
[425221434,1781623840000,-226.07199853,0.00011975,2]
[425221436,1781623840000,-2217.0,0.00011975,2]
[425221438,1781623840000,-454.0,0.00011975,2]
[425221453,1781623840000,-5277.0,0.00011975,2]
[425221443,1781623840000,-251.0,0.00011975,2]
[425221419,1781623840000,-383.78,0.00011938,2]
[425221598,1781623841000,-300.0,0.00012499,2]
[425221600,1781623841000,-300.0,0.000125,2]
[425221602,1781623841000,-15000.0,0.000125,2]
[425221608,1781623841000,-6111.0,0.000125,2]
[425221612,1781623841000,-15000.0,0.000125,2]
[425221610,1781623841000,-10000.0,0.000125,2]
[425221614,1781623841000,-1595.02903782,0.000125,2]
[425221635,1781623841000,-573.42,0.00012662,2]
[425221618,1781623841000,-3156.51224836,0.000125,2]
[425221621,1781623841000,-10000.0,0.000125,2]
[425221631,1781623841000,-1574.977,0.00012587,2]
[425221623,1781623841000,-14235.50955961,0.000125,2]
[425221629,1781623841000,-10000.0,0.00012555,2]
[425221633,1781623841000,-383.58,0.00012661,2]
[425221625,1781623841000,-10000.0,0.00012507,2]
[425221606,1781623841000,-10000.0,0.000125,2]
[425221616,1781623841000,-10000.0,0.000125,2]
[425221594,1781623841000,-2677.81093479,0.00012371,2]
[425221576,1781623841000,-174.48331303,0.00012329,2]
[425221604,1781623841000,-7220.56851522,0.000125,2]
[425221637,1781623841000,-573.42,0.00012662,2]
[425221522,1781623841000,-751.45,8.491e-05,2]
[425221525,1781623841000,-216.13448155,9.218e-05,2]
[425221556,1781623841000,-7362.94469573,0.00012236,2]
[425221554,1781623841000,-751.45,9.552e-05,2]
[425221567,1781623841000,-751.45,0.00010613,2]
[425221569,1781623841000,-7020.26261248,0.00012229,2]
[425221571,1781623841000,-349142.97416929,0.00012236,2]
[425221582,1781623841000,-174.48331302,0.00012329,2]
[425221573,1781623841000,-155.83,0.00012329,2]
[425221578,1781623841000,-180.91430193,0.00012329,2]
[425221580,1781623841000,-180.91430192,0.00012329,2]
[425221584,1781623841000,-174.48331302,0.00012329,2]
[425221585,1781623841000,-174.48331302,0.00012329,2]
[425221589,1781623841000,-150.46983872,0.00012329,2]
[425221592,1781623841000,-175.22982642,0.00012329,2]
[425221587,1781623841000,-174.48331302,0.00012329,2]
[425221596,1781623841000,-296.468256,0.00012459,7]
[425221639,1781623841000,-573.42,0.00012662,2]
[425221627,1781623841000,-6111.0,0.00012549,2]
[425221651,1781623841000,-573.44,0.00012684,2]
[425221687,1781623841000,-572.0,0.00012975,2]
[425221692,1781623841000,-650.0,0.00012975,2]
[425221683,1781623841000,-504.19,0.00012956,2]
[425221705,1781623841000,-464.0,0.00012975,2]
[425221703,1781623841000,-680.0,0.00012975,2]
[425221691,1781623841000,-752.0,0.00012975,2]
[425221694,1781623841000,-2217.0,0.00012975,2]
[425221697,1781623841000,-454.0,0.00012975,2]
[425221699,1781623841000,-1141.0,0.00012975,2]
[425221707,1781623841000,-515.0,0.00012975,2]
[425221711,1781623841000,-5277.0,0.00012975,2]
[425221713,1781623841000,-268.76432,0.00012991,7]
[425221717,1781623841000,-1990.0,0.00013,3]
[425221715,1781623841000,-966.0,0.00013,2]
[425221709,1781623841000,-3354.0,0.00012975,2]
[425221719,1781623841000,-160.50301392,0.00013048,2]
[425221641,1781623841000,-573.42,0.00012667,2]
[425221684,1781623841000,-577.0,0.00012975,2]
[425221689,1781623841000,-1387.0,0.00012975,2]
[425221701,1781623841000,-251.0,0.00012975,2]
[425221677,1781623841000,-2328.0,0.00012896,2]
[425221649,1781623841000,-573.42,0.00012684,2]
[425221679,1781623841000,-200.0,0.000129,2]
[425221653,1781623841000,-644.15,0.00012687,2]
[425221643,1781623841000,-396.2,0.00012675,2]
[425221645,1781623841000,-644.14,0.00012675,2]
[425221655,1781623841000,-644.15,0.00012687,2]
[425221658,1781623841000,-396.18,0.00012699,2]
[425221660,1781623841000,-396.12,0.00012699,2]
[425221664,1781623841000,-500.0,0.00012705,2]
[425221647,1781623841000,-644.15,0.00012675,2]
[425221671,1781623841000,-299.99,0.00012893,2]
[425221666,1781623841000,-36684.87661752,0.00012866,2]
[425221665,1781623841000,-2000.0,0.00012705,2]
[425221667,1781623841000,-15854.27483403,0.00012866,2]
[425221675,1781623841000,-4999.99,0.00012893,2]
[425221662,1781623841000,-396.18,0.00012699,2]
[425221673,1781623841000,-9999.99,0.00012893,2]
[425221668,1781623841000,-329.76,0.00012881,2]
[425221681,1781623841000,-1000.0,0.000129,2]
[425221796,1781623842000,-1662.72,0.00013698,2]
[425221800,1781623842000,-1662.72,0.00013698,2]
[425221790,1781623842000,-8279.7398333,0.00013636,2]
[425221792,1781623842000,-834.8066595,0.00013651,2]
[425221788,1781623842000,-10158.4363218,0.00013636,2]
[425221794,1781623842000,-300.0,0.00013697,2]
[425221786,1781623842000,-751.1203785,0.00013635,2]
[425221784,1781623842000,-492.30216648,0.00013565,2]
[425221798,1781623842000,-1662.72,0.00013698,2]
[425221780,1781623842000,-6078.0,0.00013549,2]
[425221802,1781623842000,-1662.72,0.00013698,2]
[425221805,1781623842000,-1662.72,0.00013698,2]
[425221826,1781623842000,-1662.72,0.00013698,2]
[425221813,1781623842000,-1662.72,0.00013698,2]
[425221815,1781623842000,-1662.72,0.00013698,2]
[425221820,1781623842000,-1662.72,0.00013698,2]
[425221822,1781623842000,-1662.72,0.00013698,2]
[425221838,1781623842000,-1884.16,0.00013698,2]
[425221818,1781623842000,-1662.72,0.00013698,2]
[425221829,1781623842000,-1662.72,0.00013698,2]
[425221825,1781623842000,-1662.72,0.00013698,2]
[425221831,1781623842000,-1884.16,0.00013698,2]
[425221833,1781623842000,-1884.16,0.00013698,2]
[425221835,1781623842000,-1884.16,0.00013698,2]
[425221782,1781623842000,-3646.0,0.00013549,2]
[425221809,1781623842000,-1662.72,0.00013698,2]
[425221778,1781623842000,-1228.0,0.00013549,2]
[425221738,1781623842000,-302.0,0.000134,2]
[425221768,1781623842000,-396.18,0.00013513,2]
[425221728,1781623842000,-268.97546673,0.00013389,2]
[425221725,1781623842000,-158.84436653,0.00013389,2]
[425221721,1781623842000,-2677.81093479,0.00013214,2]
[425221730,1781623842000,-150.09416619,0.00013389,2]
[425221723,1781623842000,-299.902087,0.00013323,7]
[425221734,1781623842000,-156.62542929,0.00013389,2]
[425221732,1781623842000,-150.0,0.00013389,2]
[425221736,1781623842000,-150.0,0.00013395,2]
[425221745,1781623842000,-573.42,0.00013483,2]
[425221742,1781623842000,-573.44,0.00013483,2]
[425221740,1781623842000,-2328.0,0.000134,2]
[425221744,1781623842000,-573.42,0.00013483,2]
[425221747,1781623842000,-396.19,0.00013483,2]
[425221749,1781623842000,-644.15,0.00013484,2]
[425221751,1781623842000,-396.18,0.00013498,2]
[425221754,1781623842000,-300.0,0.000135,2]
[425221758,1781623842000,-573.42,0.00013506,2]
[425221760,1781623842000,-573.42,0.00013506,2]
[425221764,1781623842000,-36684.87661752,0.00013511,2]
[425221762,1781623842000,-482.29,0.00013509,2]
[425221756,1781623842000,-573.42,0.00013506,2]
[425221772,1781623842000,-1359.0,0.00013549,2]
[425221766,1781623842000,-15854.27483403,0.00013511,2]
[425221776,1781623842000,-1275.0,0.00013549,2]
[425221774,1781623842000,-383.0,0.00013549,2]
[425221770,1781623842000,-644.1,0.00013513,2]
[425221841,1781623842000,-1884.16,0.00013698,2]
[425221873,1781623842000,-988.03,0.00013698,2]
[425221852,1781623842000,-1884.16,0.00013698,2]
[425221918,1781623842000,-619.2,0.00013698,2]
[425221922,1781623842000,-619.2,0.00013698,2]
[425221920,1781623842000,-619.2,0.00013698,2]
[425221924,1781623842000,-619.2,0.00013698,2]
[425221928,1781623842000,-619.2,0.00013698,2]
[425221926,1781623842000,-619.2,0.00013698,2]
[425221932,1781623842000,-619.2,0.00013698,2]
[425221929,1781623842000,-1799.06,0.00013698,2]
[425221930,1781623842000,-769.37,0.00013698,2]
[425221934,1781623842000,-769.37,0.00013698,2]
[425221939,1781623842000,-619.2,0.00013698,2]
[425221942,1781623842000,-1799.06,0.00013698,2]
[425221941,1781623842000,-769.37,0.00013698,2]
[425221943,1781623842000,-619.2,0.00013698,2]
[425221945,1781623842000,-1799.06,0.00013698,2]
[425221936,1781623842000,-1799.06,0.00013698,2]
[425221946,1781623842000,-619.2,0.00013698,2]
[425221944,1781623842000,-769.37,0.00013698,2]
[425221947,1781623842000,-769.37,0.00013698,2]
[425221948,1781623842000,-1799.06,0.00013698,2]
[425221950,1781623842000,-1799.06,0.00013698,2]
[425221949,1781623842000,-769.37,0.00013698,2]
[425221953,1781623842000,-1799.06,0.00013698,2]
[425221952,1781623842000,-769.37,0.00013698,2]
[425221850,1781623842000,-1884.16,0.00013698,2]
[425221916,1781623842000,-619.2,0.00013698,2]
[425221913,1781623842000,-509.30943901,0.00013698,2]
[425221951,1781623842000,-769.37,0.00013698,2]
[425221907,1781623842000,-500.0,0.00013698,2]
[425221905,1781623842000,-500.0,0.00013698,2]
[425221859,1781623842000,-500.0,0.00013698,2]
[425221862,1781623842000,-500.0,0.00013698,2]
[425221844,1781623842000,-1884.16,0.00013698,2]
[425221848,1781623842000,-1884.16,0.00013698,2]
[425221846,1781623842000,-1884.16,0.00013698,2]
[425221865,1781623842000,-500.0,0.00013698,2]
[425221867,1781623842000,-454.38595155,0.00013698,2]
[425221878,1781623842000,-988.03,0.00013698,2]
[425221876,1781623842000,-988.03,0.00013698,2]
[425221869,1781623842000,-988.03,0.00013698,2]
[425221880,1781623842000,-988.03,0.00013698,2]
[425221884,1781623842000,-988.03,0.00013698,2]
[425221856,1781623842000,-1884.16,0.00013698,2]
[425221882,1781623842000,-988.03,0.00013698,2]
[425221872,1781623842000,-988.03,0.00013698,2]
[425221911,1781623842000,-500.0,0.00013698,2]
[425221901,1781623842000,-500.0,0.00013698,2]
[425221909,1781623842000,-500.0,0.00013698,2]
[425221899,1781623842000,-500.0,0.00013698,2]
[425221903,1781623842000,-505.0042286,0.00013698,2]
[425221897,1781623842000,-500.0,0.00013698,2]
[425221894,1781623842000,-500.0,0.00013698,2]
[425221890,1781623842000,-988.03,0.00013698,2]
[425221888,1781623842000,-988.03,0.00013698,2]
[425221886,1781623842000,-988.03,0.00013698,2]
[425221892,1781623842000,-504.12362656,0.00013698,2]
[425221989,1781623843000,-500.0,0.00013698,2]
[425221991,1781623843000,-500.0,0.00013698,2]
[425221988,1781623843000,-506.21345895,0.00013698,2]
[425221987,1781623843000,-500.0,0.00013698,2]
[425221986,1781623843000,-535.6587737,0.00013698,2]
[425221984,1781623843000,-500.0,0.00013698,2]
[425221985,1781623843000,-500.0,0.00013698,2]
[425221983,1781623843000,-500.0,0.00013698,2]
[425221976,1781623843000,-500.0,0.00013698,2]
[425221990,1781623843000,-500.0,0.00013698,2]
[425221982,1781623843000,-502.02643317,0.00013698,2]
[425222000,1781623843000,-500.0,0.00013698,2]
[425221996,1781623843000,-332.24589096,0.00013698,2]
[425221994,1781623843000,-500.0,0.00013698,2]
[425221995,1781623843000,-500.0,0.00013698,2]
[425221997,1781623843000,-500.0,0.00013698,2]
[425221998,1781623843000,-500.50957984,0.00013698,2]
[425221999,1781623843000,-500.0,0.00013698,2]
[425221993,1781623843000,-500.0,0.00013698,2]
[425222002,1781623843000,-500.0,0.00013698,2]
[425222001,1781623843000,-500.0,0.00013698,2]
[425221978,1781623843000,-500.0,0.00013698,2]
[425222003,1781623843000,-500.0,0.00013698,2]
[425221992,1781623843000,-500.0,0.00013698,2]
[425221981,1781623843000,-500.0,0.00013698,2]
[425221966,1781623843000,-500.0,0.00013698,2]
[425221973,1781623843000,-500.0,0.00013698,2]
[425222005,1781623843000,-500.0,0.00013698,2]
[425221957,1781623843000,-1799.06,0.00013698,2]
[425221954,1781623843000,-769.37,0.00013698,2]
[425221958,1781623843000,-1799.06,0.00013698,2]
[425221956,1781623843000,-769.37,0.00013698,2]
[425221955,1781623843000,-1799.06,0.00013698,2]
[425221959,1781623843000,-769.37,0.00013698,2]
[425221960,1781623843000,-1799.06,0.00013698,2]
[425221961,1781623843000,-1799.06,0.00013698,2]
[425221969,1781623843000,-500.0,0.00013698,2]
[425221964,1781623843000,-500.0,0.00013698,2]
[425221970,1781623843000,-500.0,0.00013698,2]
[425221965,1781623843000,-500.0,0.00013698,2]
[425221962,1781623843000,-769.37,0.00013698,2]
[425221967,1781623843000,-500.0,0.00013698,2]
[425221968,1781623843000,-500.0,0.00013698,2]
[425221963,1781623843000,-500.0,0.00013698,2]
[425221971,1781623843000,-500.0,0.00013698,2]
[425221980,1781623843000,-500.0,0.00013698,2]
[425221977,1781623843000,-515.10894128,0.00013698,2]
[425221975,1781623843000,-500.0,0.00013698,2]
[425221974,1781623843000,-500.0,0.00013698,2]
[425221972,1781623843000,-500.0,0.00013698,2]
[425221979,1781623843000,-502.53252251,0.00013698,2]
[425222004,1781623843000,-500.0,0.00013698,2]
[425222007,1781623843000,-500.0,0.00013698,2]
[425222009,1781623843000,-500.0,0.00013698,2]
[425222037,1781623843000,-918.67,0.00013698,2]
[425222035,1781623843000,-918.67,0.00013698,2]
[425222039,1781623843000,-918.67,0.00013698,2]
[425222041,1781623843000,-918.67,0.00013698,2]
[425222036,1781623843000,-918.67,0.00013698,2]
[425222043,1781623843000,-918.67,0.00013698,2]
[425222040,1781623843000,-918.67,0.00013698,2]
[425222042,1781623843000,-918.67,0.00013698,2]
[425222044,1781623843000,-500.0,0.00013698,2]
[425222045,1781623843000,-500.0,0.00013698,2]
[425222048,1781623843000,-500.0,0.00013698,2]
[425222049,1781623843000,-500.0,0.00013698,2]
[425222050,1781623843000,-500.0,0.00013698,2]
[425222046,1781623843000,-500.0,0.00013698,2]
[425222054,1781623843000,-500.0,0.00013698,2]
[425222052,1781623843000,-500.0,0.00013698,2]
[425222055,1781623843000,-500.0,0.00013698,2]
[425222056,1781623843000,-500.0,0.00013698,2]
[425222053,1781623843000,-500.0,0.00013698,2]
[425222051,1781623843000,-500.0,0.00013698,2]
[425222058,1781623843000,-500.0,0.00013698,2]
[425222057,1781623843000,-500.0,0.00013698,2]
[425222059,1781623843000,-500.0,0.00013698,2]
[425222038,1781623843000,-918.67,0.00013698,2]
[425222031,1781623843000,-500.0,0.00013698,2]
[425222047,1781623843000,-500.0,0.00013698,2]
[425222034,1781623843000,-918.67,0.00013698,2]
[425222033,1781623843000,-918.67,0.00013698,2]
[425222006,1781623843000,-500.0,0.00013698,2]
[425222008,1781623843000,-500.0,0.00013698,2]
[425222012,1781623843000,-500.0,0.00013698,2]
[425222010,1781623843000,-500.0,0.00013698,2]
[425222013,1781623843000,-500.0,0.00013698,2]
[425222011,1781623843000,-500.0,0.00013698,2]
[425222014,1781623843000,-500.0,0.00013698,2]
[425222016,1781623843000,-500.0,0.00013698,2]
[425222022,1781623843000,-500.0,0.00013698,2]
[425222018,1781623843000,-500.0,0.00013698,2]